bitfinex-derivatives/quotes_ETHF0:USTF0_20250531
["timestamp","ask_amount","ask_price","bid_price","bid_amount"]
[1748690746688,0.07155339,2518.9,2518.8,0.79373]
[1748690746883,3.27935339,2518.9,2518.6,3.893]
[1748690747082,3.27935339,2518.9,2518.3,3.93198]
[1748690747083,2.71156,2518.8,2518.7,0.79375]
[1748690747283,0.79379,2518.7,2518.6,0.79379]
[1748690747485,2.69958,2518.7,2518.6,0.7938]
[1748690747987,0.79382,2518.6,2518.5,0.79381]
[1748690748188,1.45219,2518.7,2518.6,0.7938]
[1748690749693,0.79382,2518.6,2518.5,0.79381]
[1748690750292,1.45219,2518.7,2518.6,0.7938]
[1748690750686,1.52374339,2518.7,2518.6,0.7938]
[1748690751701,0.72995339,2518.7,2518.6,0.7938]
[1748690751886,1.52371339,2518.7,2518.6,0.7938]
[1748690753493,0.79383,2518.6,2518.5,0.79381]
[1748690753985,1.52373339,2518.7,2518.6,0.7938]
[1748690754191,0.72995339,2518.7,2518.6,0.7938]
[1748690756196,0.07155339,2518.7,2518.6,0.7938]
[1748690758295,0.86531339,2518.7,2518.6,0.7938]
[1748690758601,1.50731339,2518.7,2518.6,0.7938]
[1748690760710,2.74221339,2518.7,2518.6,0.7938]
[1748690761009,0.79382,2518.6,2518.5,0.79381]
[1748690761209,2.02872,2518.6,2518.5,0.79381]
[1748690761513,1.2349,2518.6,2518.5,0.79381]
[1748690762517,0.71355339,2518.7,2518.6,0.7938]
[1748690762715,1.50731339,2518.7,2518.6,0.7938]
[1748690762920,0.71355339,2518.7,2518.6,0.7938]
[1748690763118,0.07155339,2518.7,2518.6,0.7938]
[1748690763912,0.07155339,2518.7,2518.6,2.0838]
[1748690773022,0.86531339,2518.7,2518.6,2.0838]
[1748690773221,0.07155339,2518.7,2518.6,2.0838]
[1748690787325,0.07155339,2518.7,2518.6,0.7938]
[1748690787632,0.79381,2518.6,2518.5,0.7938]
[1748690788634,2.12274339,2518.7,2518.6,0.7938]
[1748690788928,0.86534339,2518.7,2518.6,0.7938]
[1748690792532,0.86534339,2518.7,2518.5,0.7938]
[1748690792533,0.79383,2518.6,2518.5,0.7938]
[1748690794433,2.114077,2518.6,2518.5,0.7938]
[1748690794821,0.79383,2518.6,2518.5,0.7938]
[1748690795331,0.86538339,2518.6,2518.5,0.7938]
[1748690795531,2.18563039,2518.6,2518.5,0.7938]
[1748690796033,0.86538339,2518.6,2518.5,0.7938]
[1748690800438,0.79387,2518.5,2518.4,0.79385]
[1748690800631,2.05597,2518.5,2518.4,0.79385]
[1748690803833,0.79386,2518.4,2518.3,1.46497]
[1748690804333,2.05595,2518.5,2518.4,0.79386]
[1748690805025,0.79386,2518.4,2518.3,0.79386]
[1748690805228,2.77836,2518.4,2518.3,0.79386]
[1748690807827,1.45686,2518.4,2518.3,0.79386]
[1748690810538,1.52841339,2518.4,2518.3,0.79386]
[1748690811336,0.86541339,2518.4,2518.3,0.79386]
[1748690815242,0.86541339,2518.4,2518.2,2.10076687]
[1748690815243,0.79389,2518.3,2518.2,2.10076687]
[1748690816341,0.86543339,2518.4,2518.3,0.79389]
[1748690816538,0.86543339,2518.4,2518.3,2.74809]
[1748690817848,0.07155339,2518.4,2518.3,2.74809]
[1748690819344,0.86541339,2518.4,2518.3,2.74809]
[1748690822747,0.86541339,2518.4,2518.3,1.9542]
[1748690823246,0.86541339,2518.4,2518.3,2.74809]
[1748690823742,0.86541339,2518.4,2518.3,1.9542]
[1748690823949,0.79389,2518.3,2518.2,0.00595687]
[1748690824246,4.00169,2518.3,2518.2,0.00595687]
[1748690825549,1.98481,2518.2,2517.6,0.79408]
[1748690825754,0.79402,2517.9,2517.8,0.658]
[1748690828154,4.00182,2517.9,2517.8,0.658]
[1748690829457,0.79408,2517.7,2517.6,0.00595687]
[1748690829750,0.79408,2517.7,2517.6,1.43875687]
[1748690830454,0.79408,2517.7,2517.6,0.00595687]
[1748690830755,0.79408,2517.7,2517.6,0.80006687]
[1748690831453,0.79408,2517.7,2517.6,0.00595687]
[1748690833247,0.79408,2517.7,2517.6,0.80006687]
[1748690833747,3.2078,2517.9,2517.8,0.79405]
[1748690833957,0.00595687,2518.1,2518.0,0.79398]
[1748690834252,0.79990687,2518.1,2518.0,0.79398]
[1748690835054,0.79398,2518.0,2517.9,2.05499]
[1748690835452,0.79398,2518.0,2517.9,1.261]
[1748690835755,0.79398,2518.0,2517.9,2.05502]
[1748690836855,0.79398,2518.0,2517.9,1.261]
[1748690837354,0.79398,2518.0,2517.9,2.05502]
[1748690838953,0.79398,2518.0,2517.9,1.261]
[1748690840956,0.86553339,2518.0,2517.9,1.261]
[1748690842257,0.86553339,2518.0,2517.9,2.05502]
[1748690842451,4.07333339,2518.0,2517.9,1.261]
[1748690843361,3.27935339,2518.0,2517.9,2.05502]
[1748690844358,4.07333339,2518.0,2517.9,2.05502]
[1748690846560,0.86553339,2518.0,2517.9,2.05502]
[1748690846857,0.86553339,2518.0,2517.9,1.261]
[1748690851765,0.86553339,2518.0,2517.9,2.05502]
[1748690851961,0.86553339,2518.0,2517.9,1.261]
[1748690852763,0.86553339,2518.0,2517.9,2.05502]
[1748690853261,0.86553339,2518.0,2517.9,1.261]
[1748690853961,2.18617767,2518.0,2517.9,1.261]
[1748690854465,2.18617767,2518.0,2517.9,2.05502]
[1748690854963,1.39219767,2518.0,2517.9,2.05502]
[1748690855165,2.18617767,2518.0,2517.9,2.05502]
[1748690855666,1.39219767,2518.0,2517.9,2.05502]
[1748690855964,2.18617767,2518.0,2517.9,2.05502]
[1748690856165,1.39219767,2518.0,2517.9,2.05502]
[1748690857167,0.07155339,2518.0,2517.9,2.05502]
[1748690868772,0.86553339,2518.0,2517.9,0.79402]
[1748690868963,2.75623339,2518.0,2517.9,0.79402]
[1748690871571,0.68865339,2518.0,2517.9,0.79402]
[1748690874081,0.07155339,2518.0,2517.9,0.79402]
[1748690875281,0.07155339,2518.0,2517.9,2.11672]
[1748690883189,1.39209265,2518.0,2517.9,2.11672]
[1748690883791,1.39209265,2518.0,2517.9,0.79402]
[1748690883991,2.01699265,2518.0,2517.9,0.79402]
[1748690884290,3.26239265,2518.0,2517.9,0.79402]
[1748690884889,4.05637265,2518.0,2517.9,0.79402]
[1748690891296,0.79404,2517.9,2517.8,0.79402]
[1748690891593,3.26239265,2518.0,2517.9,0.79402]
[1748690891997,3.26239265,2518.0,2517.6,0.00595687]
[1748690891998,0.79408,2517.7,2517.6,0.00595687]
[1748690892604,2.71638,2517.7,2517.6,0.00595687]
[1748690892893,4.03691926,2517.7,2517.6,0.00595687]
[1748690898302,0.79427,2517.1,2517.0,1.313]
[1748690898706,0.79427,2517.1,2517.0,0.6652]
[1748690898997,0.79427,2517.1,2517.0,1.4595]
[1748690899802,0.79427,2517.1,2517.0,0.6652]
[1748690900515,0.79427,2517.1,2517.0,1.4595]
[1748690900815,0.79426,2517.2,2517.1,0.79425]
[1748690903415,4.00203,2517.3,2517.2,0.79424]
[1748690905205,0.79423,2517.3,2517.2,0.79424]
[1748690907712,0.79424,2517.2,2517.1,2.05555]
[1748690911711,0.79424,2517.2,2517.1,1.2613]
[1748690911908,0.79427,2517.1,2517.0,0.6652]
[1748690912108,0.79427,2517.1,2517.0,2.0254]
[1748690912814,0.79427,2517.1,2517.0,1.4595]
[1748690913014,0.79427,2517.1,2517.0,0.7943]
[1748690913410,0.79427,2517.1,2516.8,2.00885687]
[1748690913411,0.79433,2516.9,2516.8,0.64865687]
[1748690913619,21.50323,2517.0,2516.3,2.1547]
[1748690913820,0.79449,2516.4,2516.3,2.1547]
[1748690914019,0.79439,2516.7,2516.6,0.79442]
[1748690914506,0.79439,2516.7,2516.4,1.8964]
[1748690914710,0.79439,2516.7,2516.6,0.79443]
[1748690914906,3.85555687,2516.8,2516.5,2.67583]
[1748690914907,0.79443,2516.6,2516.5,2.67583]
[1748690915206,0.79443,2516.6,2516.5,1.42213]
[1748690915917,0.79443,2516.6,2516.5,0.6277]
[1748690916112,0.99303,2516.6,2516.5,0.6277]
[1748690916319,0.99303,2516.6,2516.4,0.6427]
[1748690916320,0.79446,2516.5,2516.4,1.43719]
[1748690916511,0.79446,2516.5,2516.4,0.6427]
[1748690917218,0.79446,2516.5,2516.4,1.43719]
[1748690919412,0.1986,2516.6,2516.5,0.79446]
[1748690919823,0.00595687,2516.8,2516.7,0.79439]
[1748690920115,0.00595687,2516.8,2516.7,4.00219]
[1748690921619,0.00595687,2516.8,2516.7,0.79439]
[1748690922310,0.80031687,2516.8,2516.7,0.79439]
[1748690923017,0.79441,2516.7,2516.6,0.79441]
[1748690925720,0.79441,2516.7,2516.4,3.8505]
[1748690925721,0.79446,2516.5,2516.4,3.8505]
[1748690926015,0.79446,2516.5,2516.4,4.64499]
[1748690926220,0.79444,2516.6,2516.5,0.79446]
[1748690926416,0.00595687,2516.8,2516.4,3.8505]
[1748690926616,0.79439,2516.7,2516.6,0.79442]
[1748690927922,0.79443,2516.6,2516.5,0.79443]
[1748690928518,0.00595687,2516.8,2516.7,0.79439]
[1748690928718,0.00595687,2516.8,2516.6,0.7944]
[1748690928919,0.80031687,2516.8,2516.7,1.44299]
[1748690929114,0.80031687,2516.8,2516.7,0.6486]
[1748690930121,0.80031687,2516.8,2516.7,1.8852]
[1748690931122,0.80031687,2516.8,2516.7,2.67959]
[1748690931427,0.80031687,2516.8,2516.7,1.8852]
[1748690932829,0.80031687,2516.8,2516.7,2.67959]
[1748690934529,0.80031687,2516.8,2516.7,1.8852]
[1748690936522,0.80031687,2516.8,2516.7,2.67959]
[1748690937229,0.00595687,2516.8,2516.7,2.67959]
[1748690938128,0.80031687,2516.8,2516.7,2.67959]
[1748690940127,0.00595687,2516.8,2516.7,2.67959]
[1748690940329,0.80031687,2516.8,2516.7,2.67959]
[1748690941636,0.80031687,2516.8,2516.7,1.8852]
[1748690941832,0.80031687,2516.8,2516.7,2.67959]
[1748690942333,0.00595687,2516.8,2516.7,2.67959]
[1748690944236,3.2078,2517.3,2516.7,2.67959]
[1748690944237,3.2078,2517.3,2517.2,0.79423]
[1748690944723,4.65073,2517.6,2517.5,0.79414]
[1748690945228,0.79416,2517.5,2517.4,0.79415]
[1748690945729,2.10203532,2517.5,2517.4,0.79415]
[1748690947235,0.79417,2517.4,2517.3,2.10569]
[1748690947439,0.79417,2517.4,2517.3,0.79419]
[1748690949338,2.08296,2517.5,2517.4,0.79417]
[1748690949531,0.79416,2517.5,2517.4,0.79417]
[1748690951941,0.79417,2517.4,2517.3,2.04758]
[1748690954244,0.79417,2517.5,2517.4,0.79415]
[1748690955248,0.79417,2517.4,2517.3,2.04757]
[1748690957147,5.0929,2517.6,2517.3,1.2534]
[1748690957452,0.6488,2517.6,2517.5,0.79414]
[1748690957650,0.7941,2517.7,2517.6,0.79411]
[1748690958552,0.7941,2517.7,2517.6,1.43201]
[1748690959053,0.7941,2517.7,2517.5,1.2438]
[1748690959054,0.79411,2517.6,2517.5,2.03794]
[1748690959253,0.79411,2517.6,2517.5,0.79414]
[1748690959649,0.86566339,2517.6,2517.5,0.79414]
[1748690962755,0.07155339,2517.6,2517.5,0.79414]
[1748690963854,0.00595687,2517.8,2517.7,0.79408]
[1748690964061,3.2078,2518.3,2518.2,0.79392]
[1748690964253,6.22379249,2518.6,2517.9,1.98498]
[1748690964254,0.6586,2518.5,2517.9,1.98498]
[1748690964454,6.36440249,2518.6,2518.5,0.79383]
[1748690964855,3.2078,2518.6,2518.5,0.79383]
[1748690965050,4.00159,2518.6,2518.5,0.79383]
[1748690965866,4.00161,2518.6,2518.5,0.79382]
[1748690967358,0.79386,2518.4,2518.3,0.00595687]
[1748690968162,2.07686,2518.4,2518.3,0.00595687]
[1748690969161,5.28466,2518.4,2518.3,0.00595687]
[1748690970364,10.28466,2518.4,2518.3,0.00595687]
[1748690972564,0.79408,2517.7,2517.6,0.79409]
[1748690974362,0.6507,2517.9,2517.5,3.86]
[1748690974569,0.79407,2517.8,2517.7,0.79406]
[1748690976972,0.79408,2517.7,2517.6,1.2695]
[1748690977170,0.79414,2517.6,2517.5,0.79413]
[1748690977973,0.79414,2517.6,2517.5,2.07883]
[1748690981177,0.79414,2517.6,2517.5,2.07884]
[1748690984582,0.86566339,2517.7,2517.6,0.79411]
[1748690985075,0.07155339,2517.7,2517.6,0.79411]
[1748690986080,0.86563339,2517.7,2517.6,0.79411]
[1748690990084,0.07155339,2517.7,2517.6,0.79411]
[1748690995289,0.86563339,2517.7,2517.6,0.79411]
[1748690995885,0.07155339,2517.7,2517.6,0.79411]
[1748690996388,0.86563339,2517.7,2517.6,0.79411]
[1748690997490,0.07155339,2517.7,2517.6,0.79411]
[1748690997692,0.86563339,2517.7,2517.6,0.79411]
[1748690997989,0.07155339,2517.7,2517.6,0.79411]
[1748690998395,0.86563339,2517.7,2517.6,0.79411]
[1748691000287,0.07155339,2517.7,2517.6,0.79411]
[1748691000487,0.86562339,2517.7,2517.6,0.79411]
[1748691001092,0.79411,2517.6,2517.5,2.07882]
[1748691001893,0.86565339,2517.7,2517.6,0.79411]
[1748691003198,0.79414,2517.5,2517.4,0.80010687]
[1748691003992,0.79414,2517.5,2517.4,0.00595687]
[1748691004692,2.11444,2517.5,2517.4,0.00595687]
[1748691004893,2.11444,2517.5,2517.4,0.80012687]
[1748691005083,1.3203,2517.5,2517.4,0.80012687]
[1748691005294,2.11444,2517.5,2517.4,0.00595687]
[1748691007598,3.42360389,2517.5,2517.4,0.00595687]
[1748691008901,2.11444,2517.5,2517.4,0.00595687]
[1748691010599,2.11444,2517.5,2517.4,0.80012687]
[1748691010899,0.79414,2517.5,2517.4,0.80010687]
[1748691011100,0.79414,2517.5,2517.4,0.00595687]
[1748691011790,1.46544,2517.5,2517.4,0.00595687]
[1748691012498,2.77365334,2517.5,2517.4,0.00595687]
[1748691014696,5.98145334,2517.5,2517.4,0.00595687]
[1748691015304,10.98145334,2517.5,2517.4,0.00595687]
[1748691015504,0.79436,2516.9,2516.8,0.79436]
[1748691016000,0.79436,2516.8,2516.7,1.45957]
[1748691016202,0.79436,2516.8,2516.7,2.81467]
[1748691016502,0.80027687,2517.0,2516.9,0.79433]
[1748691017104,0.80027687,2517.0,2516.9,1.47583]
[1748691020606,0.87183026,2517.0,2516.9,1.47583]
[1748691021606,0.07751026,2517.0,2516.9,1.47583]
[1748691022007,0.07751026,2517.0,2516.9,6.47583]
[1748691022209,0.79416,2517.5,2517.4,0.79415]
[1748691022410,0.79422,2517.3,2517.0,1.2549]
[1748691022602,0.79422,2517.3,2517.2,2.04912]
[1748691023010,0.79422,2517.3,2517.2,1.2549]
[1748691023402,0.79422,2517.3,2517.2,2.04913]
[1748691023602,0.79419,2517.4,2517.3,0.79419]
[1748691023802,0.79419,2517.4,2517.3,3.39259]
[1748691024104,0.79419,2517.4,2517.3,2.5984]
[1748691024406,0.07155339,2517.0,2516.9,3.857]
[1748691024606,0.07155339,2517.0,2516.9,4.4862]
[1748691024904,0.07155339,2517.0,2516.9,5.28053]
[1748691025109,0.07155339,2517.0,2516.9,13.48833]
[1748691025308,0.27005339,2517.0,2516.9,13.48833]
[1748691025808,0.27005339,2517.0,2516.9,15.42633]
[1748691030713,0.27005339,2517.0,2516.9,10.42633]
[1748691040717,0.00595687,2517.5,2517.4,0.79417]
[1748691041519,0.00595687,2517.5,2517.4,2.11077]
[1748691045027,0.00595687,2517.5,2517.4,6.62527]
[1748691051938,0.07751026,2517.5,2517.4,6.62527]
[1748691057425,0.07751026,2517.5,2517.4,2.76927]
[1748691057629,0.07751026,2517.5,2517.4,6.62327]
[1748691058737,0.6731,2517.9,2517.8,0.79404]
[1748691060538,0.6731,2517.9,2517.8,2.03054]
[1748691060736,0.6731,2517.9,2517.8,0.79404]
[1748691064342,0.64485687,2518.1,2518.0,0.79398]
[1748691064640,0.00595687,2518.1,2518.0,4.64798]
[1748691065043,0.00595687,2518.1,2518.0,7.85578]
[1748691077141,0.00595687,2518.1,2518.0,8.53288]
[1748691079136,0.07751026,2518.1,2518.0,8.53288]
[1748691083645,0.07751026,2518.1,2518.0,5.32508]
[1748691083839,0.07751026,2518.1,2518.0,8.53288]
[1748691086344,0.07751026,2518.1,2518.0,7.85578]
[1748691086542,0.79401,2517.9,2517.8,0.00595687]
[1748691086940,5.79401,2517.9,2517.8,0.00595687]
[1748691087144,7.15071,2517.9,2517.8,0.00595687]
[1748691087446,6.3567,2517.9,2517.8,0.79999687]
[1748691087843,7.15071,2517.9,2517.8,0.79999687]
[1748691088046,6.3567,2517.9,2517.8,0.79999687]
[1748691088450,6.3567,2517.9,2517.8,0.00595687]
[1748691088642,1.3567,2517.9,2517.8,0.79999687]
[1748691095357,1.42825339,2517.9,2517.8,0.79999687]
[1748691096659,0.07155339,2517.9,2517.8,0.79999687]
[1748691097257,0.07155339,2517.9,2517.8,1.43719687]
[1748691098760,0.72725339,2517.9,2517.8,1.43719687]
[1748691099063,1.52126339,2517.9,2517.8,0.00595687]
[1748691099360,2.86826339,2517.9,2517.8,0.00595687]
[1748691099960,2.86826339,2517.9,2517.8,0.79999687]
[1748691100254,6.07606339,2517.9,2517.8,0.00595687]
[1748691100862,11.07606339,2517.9,2517.8,0.00595687]
[1748691106367,6.07606339,2517.9,2517.8,0.00595687]
[1748691107474,2.07425339,2517.9,2517.8,0.79999687]
[1748691107769,1.52126339,2517.9,2517.8,0.00595687]
[1748691107968,2.85246339,2517.9,2517.8,0.00595687]
[1748691110471,6.06026339,2517.9,2517.8,0.00595687]
[1748691114588,0.79401,2517.9,2517.8,0.00595687]
[1748691114780,0.86556339,2517.9,2517.8,2.13689687]
[1748691114977,0.86556339,2517.9,2517.8,1.34285687]
[1748691115588,2.16998454,2517.9,2517.8,2.13689687]
[1748691116187,0.86556339,2517.9,2517.8,2.13689687]
[1748691117487,2.16998454,2517.9,2517.8,2.13689687]
[1748691118189,2.16998454,2517.9,2517.8,1.34285687]
[1748691119485,2.16998454,2517.9,2517.8,2.13689687]
[1748691119689,2.16998454,2517.9,2517.8,1.34285687]
[1748691120491,7.16998454,2517.9,2517.8,0.00595687]
[1748691120888,9.12838454,2517.9,2517.8,0.00595687]
[1748691121378,2.16998454,2517.9,2517.8,0.00595687]
[1748691121983,2.16998454,2517.9,2517.8,1.35815687]
[1748691122184,2.16998454,2517.9,2517.8,2.02615687]
[1748691123685,2.16998454,2517.9,2517.8,2.82019687]
[1748691124589,2.16998454,2517.9,2517.8,2.02615687]
[1748691127394,5.37778454,2517.9,2517.8,0.00595687]
[1748691129494,0.79411,2517.6,2517.5,1.9262]
[1748691129703,0.79411,2517.6,2517.5,1.2978]
[1748691130193,0.79411,2517.6,2516.6,13.36960829]
[1748691130194,1.98543,2517.4,2516.6,13.36960829]
[1748691130388,0.79433,2516.9,2516.8,1.8763]
[1748691130591,0.79436,2516.8,2516.7,0.64665687]
[1748691130794,4.00216,2516.8,2516.7,0.64665687]
[1748691131693,5.30658115,2516.8,2516.7,0.00595687]
[1748691132891,4.00216,2516.8,2516.7,0.00595687]
[1748691133092,5.31076,2516.8,2516.7,0.00595687]
[1748691134596,0.79452,2516.3,2516.2,0.6387]
[1748691135495,0.79458,2516.1,2516.0,1.9944]
[1748691136196,1.98611,2516.6,2516.0,1.9944]
[1748691136399,0.79453,2516.3,2516.2,0.79453]
[1748691137299,0.79456,2516.2,2516.1,0.79456]
[1748691137695,0.79456,2516.2,2516.0,0.6386]
[1748691137696,1.98618,2516.5,2516.0,0.6386]
[1748691137890,0.79458,2516.1,2516.0,0.6386]
[1748691138295,0.79458,2516.1,2516.0,1.43321]
[1748691138804,0.79458,2516.1,2516.0,0.6386]
[1748691140404,0.79458,2516.1,2516.0,1.43321]
[1748691141505,0.79458,2516.1,2516.0,0.6386]
[1748691141703,0.79458,2516.1,2516.0,1.43321]
[1748691142005,0.79458,2516.1,2516.0,0.6386]
[1748691142301,0.79458,2516.1,2516.0,1.43321]
[1748691144708,0.79458,2516.1,2516.0,0.6386]
[1748691146206,0.79458,2516.1,2516.0,1.43321]
[1748691146408,0.79453,2516.3,2516.2,0.79453]
[1748691146604,0.79449,2516.4,2516.3,0.79449]
[1748691146804,0.7945,2516.4,2516.3,0.79448]
[1748691147404,1.98614,2516.5,2516.0,0.6386]
[1748691147604,0.79457,2516.1,2516.0,1.43319]
[1748691147904,0.79457,2516.2,2516.1,0.79456]
[1748691148209,0.86612339,2516.2,2516.1,0.79456]
[1748691149709,0.07155339,2516.2,2516.1,0.79456]
[1748691150111,0.79454,2516.3,2516.2,0.79454]
[1748691151615,0.79451,2516.4,2516.3,0.7945]
[1748691151812,0.79447,2516.5,2516.4,0.79447]
[1748691152006,5.076,2516.8,2516.5,0.79443]
[1748691152007,0.79445,2516.6,2516.5,0.79443]
[1748691152306,18.136,2517.1,2516.5,3.2078]
[1748691152614,9.04344,2517.2,2517.1,0.79426]
[1748691152615,3.2078,2517.2,2517.1,0.79426]
[1748691152811,0.79418,2517.4,2517.2,0.79423]
[1748691153106,3.2078,2517.5,2516.9,3.2078]
[1748691153107,0.80015687,2517.3,2516.9,3.2078]
[1748691153311,0.07155339,2517.0,2516.9,4.00212]
[1748691154221,0.79424,2517.2,2517.1,0.79426]
[1748691154519,0.79428,2517.1,2517.0,0.79428]
[1748691154719,0.79428,2517.1,2517.0,0.79429]
[1748691154908,0.79424,2517.2,2517.1,0.79425]
[1748691155407,0.79424,2517.2,2516.9,3.2078]
[1748691155408,0.79427,2517.1,2517.0,0.79427]
[1748691156213,0.79429,2517.0,2516.9,4.0021]
[1748691156414,0.79428,2517.1,2517.0,0.79428]
[1748691156820,0.00595687,2517.3,2517.1,0.79425]
[1748691157016,0.79423,2517.2,2517.1,0.79425]
[1748691157316,0.00595687,2517.3,2517.2,0.79423]
[1748691158117,0.80015687,2517.3,2517.2,0.79423]
[1748691159618,0.79424,2517.2,2517.1,0.79424]
[1748691160315,0.86579339,2517.2,2517.1,0.79424]
[1748691160620,0.07155339,2517.2,2517.1,0.79424]
[1748691161420,0.86578339,2517.2,2517.1,0.79424]
[1748691161721,0.86580339,2517.2,2517.1,0.79426]
[1748691163321,0.07155339,2517.2,2517.1,0.79426]
[1748691163924,0.07155339,2517.2,2517.1,1.41516]
[1748691164624,0.86578339,2517.2,2517.1,1.41516]
[1748691166625,0.07155339,2517.2,2517.1,1.41516]
[1748691168524,0.27015339,2517.2,2517.1,1.41516]
[1748691168722,1.06438339,2517.2,2517.1,1.41516]
[1748691168926,0.27015339,2517.2,2517.1,1.41516]
[1748691176833,0.27015339,2517.2,2517.1,2.75836]
[1748691179538,0.27015339,2517.2,2517.1,2.13746]
[1748691179731,0.79428,2517.1,2517.0,0.79428]
[1748691180131,0.79428,2517.1,2517.0,1.3668]
[1748691180435,0.7943,2517.0,2516.9,0.79431]
[1748691180636,3.49977339,2517.2,2516.7,1.9905]
[1748691180839,0.79435,2516.8,2516.7,1.3668]
[1748691181039,0.79435,2516.8,2516.7,2.16119]
[1748691181239,0.79435,2516.8,2516.7,1.3668]
[1748691181943,0.79435,2516.8,2516.7,2.16119]
[1748691182136,1.47174,2516.9,2516.8,0.79435]
[1748691182332,1.47172,2516.9,2516.8,0.79435]
[1748691183038,0.79432,2516.9,2516.8,0.79435]
[1748691185042,2.03831,2517.0,2516.9,0.79432]
[1748691185243,0.1986,2517.2,2517.1,0.79426]
[1748691186040,0.1986,2517.2,2517.1,2.06526]
[1748691186541,0.99283,2517.2,2517.1,1.271]
[1748691186742,0.1986,2517.2,2517.1,2.06526]
[1748691193952,0.79399,2518.0,2517.2,1.98557]
[1748691194145,2.37591711,2518.3,2518.2,0.79391]
[1748691194342,2.37591711,2518.3,2518.2,4.00171]
[1748691194948,3.16979711,2518.3,2518.2,3.2078]
[1748691195253,0.79394,2518.1,2518.0,0.00595687]
[1748691195753,5.79394,2518.1,2518.0,0.00595687]
[1748691196247,7.76334,2518.1,2518.0,0.00595687]
[1748691196951,9.05804099,2518.1,2518.0,0.00595687]
[1748691198661,9.29997792,2518.1,2518.0,0.00595687]
[1748691199854,4.37153131,2518.1,2518.0,0.00595687]
[1748691200568,9.37153131,2518.1,2518.0,0.00595687]
[1748691203457,4.37153131,2518.1,2518.0,0.00595687]
[1748691203862,4.29997792,2518.1,2518.0,0.00595687]
[1748691206573,0.79423,2517.2,2517.1,4.00204]
[1748691206774,0.79423,2517.2,2517.1,5.95604]
[1748691207167,0.79422,2517.3,2517.2,0.7942]
[1748691207465,0.79422,2517.3,2517.2,1.2954]
[1748691207664,1.98543,2517.4,2517.0,0.00595687]
[1748691207870,0.79426,2517.1,2517.0,0.00595687]
[1748691208574,0.79426,2517.1,2517.0,0.80024687]
[1748691208767,0.79426,2517.1,2517.0,0.00595687]
[1748691208970,0.79426,2517.1,2517.0,2.09564687]
[1748691211480,0.79426,2517.1,2517.0,2.09562687]
[1748691211782,0.79426,2517.1,2517.0,2.09564687]
[1748691212376,0.79426,2517.1,2517.0,1.30135687]
[1748691213772,0.79426,2517.1,2517.0,1.97715687]
[1748691213974,0.79426,2517.1,2517.0,0.00595687]
[1748691215168,0.79426,2517.1,2517.0,0.80024687]
[1748691215375,0.79426,2517.1,2517.0,2.79333687]
[1748691215779,0.79426,2517.1,2517.0,1.99905687]
[1748691215975,0.86581339,2517.1,2517.0,1.32325687]
[1748691216182,0.86581339,2517.1,2516.7,3.8414]
[1748691216183,0.79441,2516.7,2516.6,0.7944]
[1748691216680,0.79442,2516.6,2516.5,0.6758]
[1748691217279,0.79442,2516.6,2516.5,1.47025]
[1748691218077,0.79442,2516.6,2516.5,0.6758]
[1748691218279,0.79442,2516.6,2516.5,1.47025]
[1748691218581,0.80034687,2516.8,2516.7,0.79439]
[1748691218975,0.00595687,2516.8,2516.7,0.79439]
[1748691219781,0.00595687,2516.8,2516.7,4.00219]
[1748691220178,0.00595687,2516.8,2516.7,9.00219]
[1748691220382,0.00595687,2516.8,2516.7,4.00219]
[1748691224186,0.80031687,2516.8,2516.7,4.00219]
[1748691224784,0.00595687,2516.8,2516.7,4.00219]
[1748691226280,0.80031687,2516.8,2516.7,4.00219]
[1748691226582,0.00595687,2516.8,2516.7,4.00219]
[1748691227181,0.80031687,2516.8,2516.7,4.00219]
[1748691227783,0.79442,2516.6,2516.4,0.6794]
[1748691227989,0.79448,2516.4,2516.3,0.00595687]
[1748691228383,1.98652,2516.1,2515.2,3.2078]
[1748691228580,3.2078,2515.8,2515.5,0.79476]
[1748691228786,3.29706,2516.0,2515.6,0.79474]
[1748691228787,0.79473,2515.7,2515.6,0.79474]
[1748691229086,0.7947,2515.8,2515.7,0.7947]
[1748691229276,7.0548,2516.1,2515.8,0.79467]
[1748691229477,3.2078,2516.1,2515.7,0.00595687]
[1748691229771,0.79466,2515.9,2515.8,0.79466]
[1748691230086,0.79463,2516.0,2515.8,0.79467]
[1748691230285,0.79463,2516.0,2515.9,1.262]
[1748691231183,0.79463,2516.0,2515.9,2.05664]
[1748691233179,10.35155,2516.4,2515.9,1.262]
[1748691233385,0.79459,2516.1,2516.0,0.7946]
[1748691234186,0.79461,2516.0,2515.9,2.05662]
[1748691234988,0.79461,2516.0,2515.9,1.262]
[1748691235592,3.2078,2516.1,2515.7,0.80064687]
[1748691235786,0.79467,2515.8,2515.7,0.80064687]
[1748691235985,0.79466,2515.9,2515.8,0.79466]
[1748691236887,0.79467,2515.8,2515.7,0.80064687]
[1748691237081,0.79466,2515.9,2515.8,0.79466]
[1748691237389,0.79467,2515.8,2515.7,0.80064687]
[1748691237691,0.79467,2515.8,2515.7,0.00595687]
[1748691237883,0.79467,2515.8,2515.7,0.80065687]
[1748691239482,0.79467,2515.8,2515.7,0.00595687]
[1748691240186,0.79467,2515.8,2515.7,0.80065687]
[1748691240386,0.79467,2515.8,2515.7,0.00595687]
[1748691241189,0.79467,2515.8,2515.7,0.80065687]
[1748691241387,1.3277,2516.0,2515.9,0.79464]
[1748691241585,0.79464,2516.0,2515.9,0.79462]
[1748691241792,0.79467,2515.9,2515.8,0.79465]
[1748691242689,0.79467,2515.8,2515.7,0.80063687]
[1748691242892,0.79467,2515.8,2515.7,0.00595687]
[1748691243091,0.79467,2515.8,2515.7,0.80065687]
[1748691243487,0.79467,2515.8,2515.7,0.00595687]
[1748691243684,0.79467,2515.8,2515.7,0.80065687]
[1748691244386,0.79467,2515.8,2515.7,0.00595687]
[1748691244794,0.79467,2515.8,2515.7,0.80065687]
[1748691244984,0.79466,2515.9,2515.8,0.79464]
[1748691245487,0.86621339,2515.9,2515.8,0.79464]